fUST/lending_fUST_20241008
["ID","MTS","AMOUNT","RATE_DAILY","PERIOD"]
[340022429,1728334281563,-1176.49,0.00039178,120]
[340022430,1728334281573,-538.89,0.00039178,120]
[340022431,1728334281585,-500.0,0.00039178,120]
[340022432,1728334281595,-500.0,0.00039178,120]
[340022433,1728334281606,-505.69628045,0.00039178,120]
[340022434,1728334281617,-500.0,0.00039178,120]
[340022435,1728334281628,-230.29677823,0.00039178,120]
[340022436,1728334281639,-500.0,0.00039178,120]
[340022437,1728334281651,-2556.51,0.00039178,120]
[340022438,1728334281660,-500.0,0.00039178,120]
[340022439,1728334281671,-500.0,0.00039178,120]
[340022440,1728334281682,-500.0,0.00039178,120]
[340022441,1728334281691,-500.0,0.00039178,120]
[340022442,1728334281703,-495.20061274,0.00039178,120]
[340022443,1728334281713,-500.0,0.00039178,120]
[340022444,1728334281724,-686.35,0.00039178,120]
[340022445,1728334281734,-500.0,0.00039178,120]
[340022446,1728334281745,-1127.5,0.00039178,120]
[340022447,1728334281755,-557.71,0.00039178,120]
[340022448,1728334281764,-618.33,0.00039178,120]
[340022449,1728334281775,-336.73,0.00039178,7]
[340022450,1728334281784,-565.25877519,0.00039178,120]
[340022451,1728334281793,-554.61,0.00039178,120]
[340022452,1728334281802,-500.99492026,0.00039178,120]
[340022453,1728334281811,-724.85,0.00039178,120]
[340022454,1728334281820,-500.0,0.00039178,120]
[340022455,1728334281829,-500.0,0.00039178,120]
[340022456,1728334281838,-500.0,0.00039178,120]
[340022457,1728334281847,-500.0,0.00039178,120]
[340022458,1728334281856,-500.0,0.00039178,120]
[340022459,1728334281865,-500.0,0.00039178,120]
[340022460,1728334281875,-500.0,0.00039178,120]
[340022461,1728334281884,-500.0,0.00039178,120]
[340022462,1728334281893,-500.0,0.00039178,120]
[340022463,1728334281902,-500.0,0.00039178,120]
[340022464,1728334281912,-500.0,0.00039178,120]
[340022465,1728334281921,-500.0,0.00039178,120]
[340022466,1728334281930,-500.0,0.00039178,120]
[340022467,1728334281940,-500.97545906,0.00039178,120]
[340022468,1728334281950,-500.75786992,0.00039178,120]
[340022469,1728334281959,-1000.0,0.00039178,120]
[340022470,1728334281968,-500.54687686,0.00039178,90]
[340022471,1728334281980,-575.14,0.00039178,120]
[340022472,1728334281991,-500.67870843,0.00039178,120]
[340022473,1728334282002,-500.0,0.00039178,120]
[340022474,1728334282013,-500.0,0.00039178,120]
[340022475,1728334282024,-500.0,0.00039178,120]
[340022476,1728334282035,-500.0,0.00039178,120]
[340022477,1728334282045,-500.0,0.00039178,120]
[340022478,1728334282057,-500.0,0.00039178,120]
[340022479,1728334282066,-500.0,0.00039178,120]
[340022480,1728334282075,-501.94,0.00039178,120]
[340022481,1728334282086,-500.0,0.00039178,120]
[340022482,1728334282097,-557.73,0.00039178,120]
[340022483,1728334282107,-500.0,0.00039178,120]
[340022484,1728334282121,-501.77750373,0.00039178,120]
[340022485,1728334282131,-819.33,0.00039178,120]
[340022486,1728334282142,-500.0,0.00039178,120]
[340022487,1728334282155,-521.05,0.00039178,120]
[340022488,1728334282165,-500.0,0.00039178,120]
[340022489,1728334282177,-500.0,0.00039178,120]
[340022490,1728334282188,-500.0,0.00039178,120]
[340022491,1728334282200,-509.04386426,0.00039178,120]
[340022492,1728334282212,-1265.51,0.00039178,120]
[340022493,1728334282222,-500.0,0.00039178,120]
[340022494,1728334282233,-500.67624626,0.00039178,120]
[340022495,1728334282243,-518.1,0.00039178,120]
[340022496,1728334282254,-583.01,0.00039178,120]
[340022497,1728334282266,-500.0,0.00039178,120]
[340022498,1728334282278,-500.0,0.00039178,120]
[340022499,1728334282290,-500.0,0.00039178,120]
[340022500,1728334282300,-500.0,0.00039178,120]
[340022501,1728334282310,-500.0,0.00039178,120]
[340022502,1728334282321,-500.0,0.00039178,120]
[340022503,1728334282331,-500.0,0.00039178,120]
[340022504,1728334282342,-295.00510022,0.00039178,120]
[340022505,1728334282353,-500.0,0.00039178,120]
[340022506,1728334282366,-1208.8,0.00039178,120]
[340022507,1728334282379,-500.0,0.00039178,120]
[340022508,1728334282390,-230.69038103,0.00039178,120]
[340022509,1728334282399,-500.54756582,0.00039178,120]
[340022510,1728334282409,-500.0,0.00039178,120]
[340022511,1728334282419,-500.0,0.00039178,120]
[340022512,1728334282428,-500.0,0.00039178,120]
[340022513,1728334282439,-497.96170372,0.00039178,120]
[340022514,1728334282451,-500.0,0.00039178,120]
[340022515,1728334282460,-500.0,0.00039178,120]
[340022516,1728334282469,-500.0,0.00039178,120]
[340022517,1728334282480,-500.0,0.00039178,120]
[340022518,1728334282491,-500.0,0.00039178,120]
[340022519,1728334282502,-618.94,0.00039178,120]
[340022520,1728334282512,-500.48596066,0.00039178,120]
[340022521,1728334282522,-500.0,0.00039178,120]
[340022522,1728334282534,-500.0,0.00039178,120]
[340022523,1728334282544,-500.0,0.00039178,120]
[340022524,1728334282557,-500.0,0.00039178,120]
[340022525,1728334282567,-365.8848115,0.00039178,120]
[340022526,1728334282577,-500.0,0.00039178,120]
[340022527,1728334282587,-500.0,0.00039178,120]
[340022528,1728334282711,-518.25253788,0.00039178,120]
[340022529,1728334282722,-500.0,0.00039178,120]
[340022530,1728334282734,-718.42,0.00039178,120]
[340022531,1728334282745,-500.0,0.00039178,120]
[340022532,1728334282756,-500.0,0.00039178,120]
[340022533,1728334282767,-500.49032239,0.00039178,120]
[340022534,1728334282776,-705.43,0.00039178,120]
[340022535,1728334282788,-500.0,0.00039178,120]
[340022536,1728334282799,-500.0,0.00039178,120]
[340022537,1728334282811,-500.50275461,0.00039178,120]
[340022538,1728334282822,-500.0,0.00039178,120]
[340022539,1728334282833,-512.16,0.00039178,7]
[340022540,1728334282843,-500.0,0.00039178,120]
[340022541,1728334282853,-1000.59,0.00039178,120]
[340022542,1728334282863,-500.0,0.00039178,120]
[340022543,1728334282872,-2499.96,0.00039178,120]
[340022544,1728334282882,-500.0,0.00039178,120]
[340022545,1728334282892,-500.0,0.00039178,120]
[340022546,1728334282902,-500.0,0.00039178,120]
[340022547,1728334282912,-550.18,0.00039178,120]
[340022548,1728334282922,-367.66343317,0.00039178,120]
[340022549,1728334282931,-500.0,0.00039178,120]
[340022550,1728334282941,-511.56874475,0.00039178,120]
[340022551,1728334282950,-500.0,0.00039178,120]
[340022552,1728334282961,-615.51,0.00039178,120]
[340022553,1728334282970,-500.0,0.00039178,120]
[340022554,1728334282980,-491.72619685,0.00039178,120]
[340022555,1728334282990,-824.07,0.00039178,120]
[340022556,1728334282999,-500.0,0.00039178,120]
[340022557,1728334283009,-1097.32,0.00039178,120]
[340022558,1728334283019,-500.0,0.00039178,120]
[340022559,1728334283028,-500.0,0.00039178,120]
[340022560,1728334283038,-502.97950288,0.00039178,120]
[340022561,1728334283049,-566.32056239,0.00039178,120]
[340022562,1728334283061,-500.0,0.00039178,120]
[340022563,1728334283070,-500.0,0.00039178,120]
[340022564,1728334283081,-516.16,0.00039178,120]
[340022565,1728334283092,-500.0,0.00039178,120]
[340022566,1728334283103,-505.48533824,0.00039178,120]
[340022567,1728334283118,-513.09269193,0.00039178,120]
[340022568,1728334283128,-500.0,0.00039178,120]
[340022569,1728334283137,-369.1804605,0.00039178,120]
[340022570,1728334283147,-500.0,0.00039178,120]
[340022571,1728334283158,-500.0,0.00039178,120]
[340022572,1728334283168,-514.48,0.00039178,120]
[340022573,1728334283177,-500.0,0.00039178,120]
[340022574,1728334283188,-500.0,0.00039178,120]
[340022575,1728334283199,-500.0,0.00039178,120]
[340022576,1728334283208,-584.54,0.00039178,120]
[340022577,1728334283220,-501.14992152,0.00039178,120]
[340022578,1728334283230,-500.0,0.00039178,120]
[340022579,1728334283240,-500.0,0.00039178,120]
[340022580,1728334283250,-502.32,0.00039178,120]
[340022581,1728334283261,-500.0,0.00039178,120]
[340022582,1728334283273,-500.0,0.00039178,120]
[340022583,1728334283287,-500.0,0.00039178,120]
[340022584,1728334283299,-607.71059156,0.00039178,120]
[340022585,1728334283309,-500.0,0.00039178,120]
[340022586,1728334283321,-500.0,0.00039178,120]
[340022587,1728334283332,-200.0,0.00039178,120]
[340022588,1728334283343,-500.0,0.00039178,120]
[340022589,1728334283352,-659.67,0.00039178,30]
[340022590,1728334283363,-525.06411463,0.00039178,120]
[340022591,1728334283374,-843.64,0.00039178,120]
[340022592,1728334283385,-500.0,0.00039178,120]
[340022593,1728334283396,-826.06,0.00039178,120]
[340022594,1728334283406,-500.0,0.00039178,120]
[340022595,1728334283416,-500.0,0.00039178,120]
[340022596,1728334283428,-844.53,0.00039178,120]
[340022597,1728334283438,-501.1260743,0.00039178,120]
[340022598,1728334283450,-500.0,0.00039178,120]
[340022599,1728334283464,-500.0,0.00039178,120]
[340022600,1728334283474,-500.0,0.00039178,120]
[340022601,1728334283485,-500.0,0.00039178,120]
[340022602,1728334283495,-500.0,0.00039178,120]
[340022603,1728334283506,-500.0,0.00039178,120]
[340022604,1728334283518,-500.0,0.00039178,120]
[340022605,1728334283527,-500.0,0.00039178,120]
[340022606,1728334283538,-500.0,0.00039178,120]
[340022607,1728334283547,-500.0,0.00039178,120]
[340022608,1728334283559,-500.0,0.00039178,120]
[340022609,1728334283569,-500.0,0.00039178,120]
[340022610,1728334283578,-500.0,0.00039178,120]
[340022611,1728334283587,-863.29,0.00039178,120]
[340022612,1728334283597,-714.69,0.00039178,120]
[340022613,1728334283608,-500.0,0.00039178,120]
[340022614,1728334283620,-535.19881053,0.00039178,120]
[340022615,1728334283633,-500.0,0.00039178,120]
[340022616,1728334283645,-500.0,0.00039178,120]
[340022617,1728334283656,-500.0,0.00039178,120]
[340022618,1728334283667,-500.0,0.00039178,120]
[340022619,1728334283677,-500.0,0.00039178,120]
[340022620,1728334283688,-537.33,0.00039178,120]
[340022621,1728334283701,-500.0,0.00039178,120]
[340022622,1728334283711,-500.0,0.00039178,120]
[340022623,1728334283720,-500.9322779,0.00039178,120]
[340022624,1728334283730,-500.0,0.00039178,120]
[340022625,1728334283739,-501.76906023,0.00039178,120]
[340022626,1728334283749,-500.0,0.00039178,120]
[340022627,1728334283759,-611.81,0.00039178,120]
[340022628,1728334283769,-524.98341421,0.00039178,120]
[340022629,1728334283779,-500.77470347,0.00039178,120]
[340022630,1728334283788,-500.0,0.00039178,120]
[340022631,1728334283798,-500.0,0.00039178,120]
[340022632,1728334283808,-500.0,0.00039178,120]
[340022633,1728334283819,-500.0,0.00039178,120]
[340022634,1728334283829,-501.23455622,0.00039178,120]
[340022635,1728334283838,-679.62,0.00039178,120]
[340022636,1728334283847,-500.0,0.00039178,120]
[340022637,1728334283857,-500.0,0.00039178,120]
[340022638,1728334283867,-500.0,0.00039178,120]
[340022639,1728334283877,-246.8101177,0.00039178,120]
[340022640,1728334283887,-769.77,0.00039178,120]
[340022641,1728334283896,-500.0,0.00039178,120]
[340022642,1728334283906,-500.0,0.00039178,120]
[340022643,1728334283916,-944.22,0.00039178,120]
[340022644,1728334283926,-500.0,0.00039178,120]
[340022645,1728334283936,-514.42,0.00039178,120]
[340022646,1728334283946,-500.0,0.00039178,120]
[340022647,1728334283958,-500.0,0.00039178,120]
[340022648,1728334283968,-500.0,0.00039178,120]
[340022649,1728334283979,-677.66,0.00039178,120]
[340022650,1728334283989,-500.0,0.00039178,120]
[340022651,1728334283998,-10035.21,0.00039178,18]
[340022652,1728334284007,-700.93,0.00039178,120]
[340022653,1728334284017,-1452.80209204,0.000392,11]
[340022654,1728334284029,-250.0,0.00039221,5]
[340022655,1728334284039,-1557.94,0.00039452,120]
[340022656,1728334284051,-296.15678334,0.00039452,120]
[340022657,1728334284062,-609.31854171,0.00039452,120]
[340022658,1728334284072,-500.81544358,0.00039452,120]
[340022659,1728334284083,-500.0,0.00039452,120]
[340022660,1728334284094,-500.0,0.00039452,120]
[340022661,1728334284104,-500.0,0.00039452,120]
[340022662,1728334284117,-500.0,0.00039452,120]
[340022663,1728334284128,-500.0,0.00039452,120]
[340022664,1728334284138,-500.0,0.00039452,120]
[340022665,1728334284149,-500.0,0.00039452,120]
[340022666,1728334284161,-500.0,0.00039452,120]
[340022667,1728334284170,-500.0,0.00039452,120]
[340022668,1728334284182,-878.3,0.00039452,120]
[340022669,1728334284193,-500.0,0.00039452,120]
[340022670,1728334284204,-500.0,0.00039452,120]
[340022671,1728334284213,-500.0,0.00039452,120]
[340022672,1728334284223,-500.0,0.00039452,120]
[340022673,1728334284233,-545.39,0.00039452,120]
[340022674,1728334284243,-500.0,0.00039452,120]
[340022675,1728334284252,-603.96,0.00039452,120]
[340022676,1728334284263,-500.0,0.00039452,120]
[340022677,1728334284274,-500.0,0.00039452,120]
[340022678,1728334284284,-500.0,0.00039452,120]
[340022679,1728334284294,-332.10543945,0.00039452,120]
[340022680,1728334284305,-500.0,0.00039452,120]
[340022681,1728334284317,-500.0,0.00039452,120]
[340022682,1728334284328,-500.0,0.00039452,120]
[340022683,1728334284337,-500.0,0.00039452,120]
[340022684,1728334284348,-500.0,0.00039452,120]
[340022685,1728334284358,-500.0,0.00039452,120]
[340022686,1728334284367,-500.0,0.00039452,120]
[340022687,1728334284377,-500.0,0.00039452,90]
[340022688,1728334284387,-500.0,0.00039452,120]
[340022689,1728334284396,-500.6189663,0.00039452,120]
[340022690,1728334284405,-500.0,0.00039452,120]
[340022691,1728334284416,-500.0,0.00039452,120]
[340022692,1728334284426,-500.0,0.00039452,120]
[340022693,1728334284436,-500.0,0.00039452,120]
[340022694,1728334284446,-800.19,0.00039452,120]
[340022695,1728334284458,-500.0,0.00039452,120]
[340022696,1728334284469,-751.04,0.00039452,120]
[340022697,1728334284478,-500.0,0.00039452,7]
[340022698,1728334284489,-500.0,0.00039452,120]
[340022699,1728334284499,-500.0,0.00039452,120]
[340022700,1728334284510,-500.0,0.00039452,120]
[340022701,1728334284521,-501.48111162,0.00039452,120]
[340022702,1728334284531,-500.0,0.00039452,120]
[340022703,1728334284541,-841.21,0.00039452,120]
[340022704,1728334284551,-500.0,0.00039452,120]
[340022705,1728334284561,-500.0,0.00039452,120]
[340022706,1728334284572,-500.0,0.00039452,120]
[340022707,1728334284582,-500.0,0.00039452,120]
[340022708,1728334284593,-500.0,0.00039452,20]
[340022709,1728334284604,-506.59907176,0.00039452,120]
[340022710,1728334284616,-500.0,0.00039452,60]
[340022711,1728334284625,-500.0,0.00039452,120]
[340022712,1728334284635,-500.0,0.00039452,120]
[340022713,1728334284645,-506.77163804,0.00039452,120]
[340022714,1728334284654,-500.0,0.00039452,7]
[340022715,1728334284664,-500.0,0.00039452,120]
[340022716,1728334284673,-501.00543372,0.00039452,120]
[340022717,1728334284683,-500.0,0.00039452,120]
[340022718,1728334284692,-500.0,0.00039452,120]
[340022719,1728334284703,-500.0,0.00039452,120]
[340022720,1728334284712,-500.0,0.00039452,120]
[340022721,1728334284722,-500.0,0.00039452,120]
[340022722,1728334284732,-500.0,0.00039452,120]
[340022723,1728334284741,-500.0,0.00039452,30]
[340022724,1728334284751,-500.0,0.00039452,120]
[340022725,1728334284760,-612.78,0.00039452,120]
[340022726,1728334284770,-500.0,0.00039452,120]
[340022727,1728334284779,-500.0,0.00039452,120]
[340022728,1728334284789,-500.0,0.00039452,120]
[340022729,1728334284799,-500.0,0.00039452,120]
[340022730,1728334284808,-501.64090845,0.00039452,120]
[340022731,1728334284818,-589.28,0.00039452,120]
[340022732,1728334284827,-500.0,0.00039452,120]
[340022733,1728334284837,-500.0,0.00039452,120]
[340022734,1728334284846,-500.0,0.00039452,120]
[340022735,1728334284855,-500.0,0.00039452,120]
[340022736,1728334284865,-557.3,0.00039452,120]
[340022737,1728334284874,-500.0,0.00039452,120]
[340022738,1728334284883,-500.0,0.00039452,120]
[340022739,1728334284894,-159.12810345,0.00039452,120]
[340022740,1728334284903,-500.0,0.00039452,120]
[340022741,1728334284912,-500.0,0.00039452,120]
[340022742,1728334284922,-500.0,0.00039452,120]
[340022743,1728334284935,-500.0,0.00039452,120]
[340022744,1728334284944,-500.0,0.00039452,120]
[340022745,1728334284956,-500.0,0.00039452,120]
[340022746,1728334284967,-500.0,0.00039452,120]
[340022747,1728334284976,-500.0,0.00039452,120]
[340022748,1728334284986,-500.0,0.00039452,120]
[340022749,1728334284995,-500.0,0.00039452,120]
[340022750,1728334285005,-500.0,0.00039452,120]
[340022751,1728334285015,-500.0,0.00039452,120]
[340022752,1728334285024,-500.0,0.00039452,120]
[340022753,1728334285034,-500.0,0.00039452,120]
[340022754,1728334285043,-385.02594521,0.00039452,120]
[340022755,1728334285178,-500.0,0.00039452,120]
[340022756,1728334285187,-500.0,0.00039452,120]
[340022757,1728334285197,-500.0,0.00039452,120]
[340022758,1728334285206,-949.88,0.00039452,120]
[340022759,1728334285215,-660.6,0.00039452,120]
[340022760,1728334285225,-500.0,0.00039452,120]
[340022761,1728334285234,-500.0,0.00039452,120]
[340022762,1728334285243,-754.75,0.00039452,120]
[340022763,1728334285253,-500.0,0.00039452,120]
[340022764,1728334285264,-150.0,0.00039452,120]
[340022765,1728334285274,-255.96729842,0.00039452,2]
[340022766,1728334285284,-499.39235593,0.00039452,120]
[340022767,1728334285295,-500.0,0.00039452,120]
[340022768,1728334285304,-500.88896071,0.00039452,120]
[340022769,1728334285314,-500.0,0.00039452,120]
[340022770,1728334285323,-818.47,0.00039452,120]
[340022771,1728334285333,-500.0,0.00039452,120]
[340022772,1728334285342,-500.0,0.00039452,120]
[340022773,1728334285351,-500.0,0.00039452,120]
[340022774,1728334285360,-550.91,0.00039452,120]
[340022775,1728334285370,-500.0,0.00039452,120]
[340022776,1728334285379,-500.0,0.00039452,120]
[340022777,1728334285388,-500.0,0.00039452,120]
[340022778,1728334285398,-500.0,0.00039452,120]
[340022779,1728334285407,-500.0,0.00039452,120]
[340022780,1728334285416,-625.1,0.00039452,120]
[340022781,1728334285425,-500.0,0.00039452,120]
[340022782,1728334285434,-914.39,0.00039452,120]
[340022783,1728334285443,-504.48185973,0.00039452,120]
[340022784,1728334285454,-500.0,0.00039452,120]
[340022785,1728334285463,-501.25614319,0.00039452,120]
[340022786,1728334285473,-500.0,0.00039452,120]
[340022787,1728334285482,-500.0,0.00039452,120]
[340022788,1728334285492,-500.0,0.00039452,120]
[340022789,1728334285501,-501.06528845,0.00039452,120]
[340022790,1728334285511,-237.19240129,0.00039452,120]
[340022791,1728334285521,-500.0,0.00039452,120]
[340022792,1728334285530,-500.0,0.00039452,120]
[340022793,1728334285540,-500.0,0.00039452,120]
[340022794,1728334285549,-500.0,0.00039452,120]
[340022795,1728334285559,-500.0,0.00039452,120]
[340022796,1728334285568,-166.9791608,0.00039452,120]
[340022797,1728334285578,-500.0,0.00039452,120]
[340022798,1728334285587,-500.0,0.00039452,120]
[340022799,1728334285596,-500.0,0.00039452,120]
[340022800,1728334285606,-500.0,0.00039452,120]
[340022801,1728334285615,-500.0,0.00039452,120]
[340022802,1728334285625,-500.0,0.00039452,120]
[340022803,1728334285634,-500.0,0.00039452,120]
[340022804,1728334285643,-502.14450209,0.00039452,120]
[340022805,1728334285652,-500.0,0.00039452,120]
[340022806,1728334285662,-1000.0,0.00039452,120]
[340022807,1728334285672,-500.0,0.00039452,120]
[340022808,1728334285682,-600.70693139,0.00039452,120]
[340022809,1728334285691,-287.00297457,0.00039452,120]
[340022810,1728334285702,-500.0,0.00039452,60]
[340022811,1728334285712,-500.0,0.00039452,120]
[340022812,1728334285721,-1047.98,0.00039452,120]
[340022813,1728334285731,-500.0,0.00039452,120]
[340022814,1728334285740,-500.0,0.00039452,120]
[340022815,1728334285750,-500.0,0.00039452,120]
[340022816,1728334285759,-683.38,0.00039452,120]
[340022817,1728334285768,-500.0,0.00039452,120]
[340022818,1728334285778,-500.0,0.00039452,120]
[340022819,1728334285788,-500.0,0.00039452,120]
[340022820,1728334285807,-1235.61,0.00039452,120]
[340022821,1728334285818,-1137.42,0.00039452,120]
[340022822,1728334285828,-500.0,0.00039452,120]
[340022823,1728334285837,-500.0,0.00039452,120]
[340022824,1728334285846,-500.0,0.00039452,120]
[340022825,1728334285856,-500.0,0.00039452,120]
[340022826,1728334285865,-500.0,0.00039452,120]
[340022827,1728334285874,-500.0,0.00039452,120]
[340022828,1728334285884,-500.0,0.00039452,120]
[340022829,1728334285894,-500.0,0.00039452,120]
[340022830,1728334285905,-500.0,0.00039452,120]
[340022831,1728334285915,-500.0,0.00039452,120]
[340022832,1728334285924,-500.0,0.00039452,120]
[340022833,1728334285934,-500.0,0.00039452,120]
[340022834,1728334285944,-500.0,0.00039452,120]
[340022835,1728334285955,-500.0,0.00039452,120]
[340022836,1728334285966,-500.0,0.00039452,120]
[340022837,1728334285977,-575.41,0.00039452,120]
[340022838,1728334285988,-500.0,0.00039452,120]
[340022839,1728334285999,-500.0,0.00039452,120]
[340022840,1728334286009,-500.0,0.00039452,120]
[340022841,1728334286023,-555.12386773,0.00039452,120]
[340022842,1728334286034,-500.0,0.00039452,120]
[340022843,1728334286044,-623.03508022,0.00039452,120]
[340022844,1728334286055,-500.0,0.00039452,120]
[340022845,1728334286065,-647.33996391,0.00039452,120]
[340022846,1728334286077,-800.54,0.00039452,120]
[340022847,1728334286088,-500.0,0.00039452,120]
[340022848,1728334286099,-709.12,0.00039452,120]
[340022849,1728334286112,-500.0,0.00039452,120]
[340022850,1728334286121,-711.22,0.00039452,120]
[340022851,1728334286131,-500.0,0.00039452,120]
[340022852,1728334286142,-550.77,0.00039452,120]
[340022853,1728334286152,-500.0,0.00039452,120]
[340022854,1728334286163,-500.0,0.00039452,120]
[340022855,1728334286175,-500.0,0.00039452,120]
[340022856,1728334286189,-500.0,0.00039452,120]
[340022857,1728334286202,-744.73,0.00039452,120]
[340022858,1728334286213,-500.0,0.00039452,120]
[340022859,1728334286241,-500.0,0.00039452,120]
[340022860,1728334286262,-750.18,0.00039452,120]
[340022861,1728334286282,-208.54476311,0.00039452,120]
[340022862,1728334286301,-500.0,0.00039452,120]
[340022863,1728334286321,-500.0,0.00039452,120]
[340022864,1728334286341,-500.0,0.00039452,120]
[340022865,1728334286360,-481.88118883,0.00039452,120]
[340022866,1728334286379,-500.0,0.00039452,120]
[340022867,1728334286398,-511.42906746,0.00039452,120]
[340022868,1728334286413,-607.18,0.00039452,120]
[340022869,1728334286432,-1202.82,0.00039452,120]
[340022870,1728334286451,-500.0,0.00039452,120]
[340022871,1728334286471,-553.61947479,0.00039452,120]
[340022872,1728334286485,-500.0,0.00039452,120]
[340022873,1728334286501,-500.0,0.00039452,120]
[340022874,1728334286517,-500.0,0.00039452,120]
[340022875,1728334286534,-500.0,0.00039452,120]
[340022876,1728334286553,-1170.58,0.00039452,120]
[340022877,1728334286569,-500.0,0.00039452,120]
[340022878,1728334286595,-500.0,0.00039452,120]
[340022879,1728334286615,-500.0,0.00039452,120]
[340022880,1728334286635,-637.28,0.00039452,120]
[340022881,1728334286655,-500.0,0.00039452,120]
[340022882,1728334286673,-500.0,0.00039452,120]
[340022883,1728334286688,-500.0,0.00039452,120]
[340022884,1728334286708,-1008.72,0.00039452,120]
[340022885,1728334286725,-500.0,0.00039452,120]
[340022886,1728334286740,-500.0,0.00039452,120]
[340022887,1728334286755,-500.0,0.00039452,120]
[340022888,1728334286772,-501.06468185,0.00039452,120]
[340022889,1728334286788,-576.24,0.00039452,120]
[340022890,1728334286803,-500.0,0.00039452,120]
[340022891,1728334286818,-787.72,0.00039452,120]
[340022892,1728334286833,-500.0,0.00039452,7]
[340022893,1728334286850,-500.0,0.00039452,120]
[340022894,1728334286866,-687.3,0.00039452,120]
[340022895,1728334286882,-483.90929612,0.00039452,120]
[340022896,1728334286897,-500.5313665,0.00039452,120]
[340022897,1728334286911,-501.89071546,0.00039452,120]
[340022898,1728334286926,-500.0,0.00039452,120]
[340022899,1728334286939,-917.09,0.00039452,120]
[340022900,1728334286963,-500.0,0.00039452,120]
[340022901,1728334286978,-501.48700816,0.00039452,120]
[340022902,1728334286995,-500.0,0.00039452,120]
[340022903,1728334287012,-500.0,0.00039452,120]
[340022904,1728334287028,-500.0,0.00039452,120]
[340022905,1728334287042,-501.36415312,0.00039452,120]
[340022906,1728334287056,-417.58114297,0.00039452,120]
[340022907,1728334287071,-500.0,0.00039452,120]
[340022908,1728334287088,-1008.32,0.00039452,120]
[340022909,1728334287103,-500.0,0.00039452,120]
[340022910,1728334287120,-1051.57,0.00039452,120]
[340022911,1728334287135,-500.83517204,0.00039452,120]
[340022912,1728334287149,-500.0,0.00039452,120]
[340022913,1728334287164,-500.0,0.00039452,120]
[340022914,1728334287178,-501.20520443,0.00039452,120]
[340022915,1728334287194,-677.92,0.00039452,120]
[340022916,1728334287208,-500.0,0.00039452,2]
[340022917,1728334287222,-500.0,0.00039452,120]
[340022918,1728334287237,-529.97,0.00039452,120]
[340022919,1728334287250,-500.0,0.00039452,120]
[340022920,1728334287264,-500.0,0.00039452,10]
[340022921,1728334287280,-1141.57,0.00039452,120]
[340022922,1728334287296,-954.06,0.00039452,120]
[340022923,1728334287310,-500.0,0.00039452,120]
[340022924,1728334287325,-865.56,0.00039452,120]
[340022925,1728334287340,-818.05,0.00039452,120]
[340022926,1728334287355,-500.0,0.00039452,120]
[340022927,1728334287371,-500.0,0.00039452,120]
[340022928,1728334287385,-647.55,0.00039452,120]